[Event "Reykjavik Open 2025"]
[Site "Reykjavik"]
[Date "2025.04.09"]
[Round "1.6"]
[White "Haertig, Jens"]
[Black "Banusz, Tamas"]
[Result "0-1"]
[Annotator "TA"]
[ECO "D04"]
[WhiteElo "2149"]
[BlackElo "2592"]
[PlyCount "94"]
[EventDate "2025.04.09"]
[EventType "swiss"]
[EventCountry "ISL"]
[SourceTitle "playchess.com"]
[Source "ChessBase"]
[SourceQuality "1"]
[TimeControl "40/5400+30:1800+30"]

{[%evp 9,94,9,25,11,22,21,21,0,22,-5,41,41,46,18,36,-12,43,-22,44,39,60,0,52,33,45,22,25,0,0,-26,-30,-36,-35,-35,-25,-31,-16,-59,-38,-81,-8,-48,-51,-263,-87,-97,-82,-82,-80,-84,-86,-133,-81,-129,-113,-116,-111,-103,-113,-159,-67,-160,0,-151,-174,-154,-60,-211,-183,-267,-265,-747,-745,-783,-530,-508,-409,-422,-420,-417,-425,-423,-412,-789,-784,-752,-741]} 1. d4 {[%emt 0:00:03]} Nf6 {[%emt 0:00:19]} 2. Nf3 {[%emt 0:00:03]} d5 {[%emt 0:01:16]} 3. e3 {[%emt 0:00:03]} Bf5 {[%emt 0:00:30]} 4. Bd3 {[%emt 0:01:26]} Bg6 {[%emt 0:00:07]} 5. O-O {[%emt 0:00:11]} c6 {[%emt 0:00:57]} 6. b3 {[%emt 0:00:12] D04: Colle System.} e6 {[%emt 0:00:18]} 7. Bb2 {[%emt 0:00:05]} Nbd7 {[%emt 0:01:10]} 8. Nbd2 {[%emt 0:00:16] The position is equal.} Be7 $5 {[%emt 0:02:30][%mdl 4] Exploring less charted territory.} 9. Qe2 {[%emt 0:07:59]} O-O {[%emt 0:02:24]} (9... Ne4 $11 {was preferable.}) 10. Bxg6 $1 $14 {[%emt 0:08:09]} hxg6 {[%emt 0:00:57]} 11. Rfd1 $146 {[%emt 0:00:06]} (11. c4 Nh5 12. g3 Nhf6 13. a3 Ne4 14. cxd5 cxd5 15. Rac1 Ndf6 16. b4 Qb6 17. Ne5 {1-0 Rickers,B (1724)-Schiller,D (1736) Schleswig-Holstein-ch HT 2018 (4)}) 11... a5 {[%emt 0:01:07]} 12. a3 {[%emt 0:04:48]} (12. a4 $14) 12... Qb6 {[%emt 0:03:31]} (12... a4 $11) 13. e4 {[%emt 0:14:45]} (13. c4 $14) 13... Rfd8 {[%emt 0:09:32]} (13... Nxe4 $11 14. Nxe4 dxe4 15. Qxe4 a4) 14. e5 {[%emt 0:19:51]} Ne8 {[%emt 0:00:27]} 15. c4 {[%emt 0:00:01]} (15. a4 $14) 15... c5 {[%emt 0:06:05]} (15... a4 $11) 16. Rab1 {[%emt 0:07:48]} Qa6 {[%emt 0:04:11]} 17. dxc5 {[%emt 0:04:42]} Nxc5 {[%emt 0:01:34]} 18. Nd4 {[%emt 0:00:09]} Nc7 {[%emt 0:03:08]} 19. Kf1 {[%emt 0:01:21]} dxc4 {[%emt 0:04:54]} 20. Nxc4 {[%emt 0:04:17]} Nd5 {[%emt 0:01:19]} 21. g3 {[%emt 0:00:25]} Rac8 {[%emt 0:01:54][%cal Oc5a4]} 22. Rbc1 {[%emt 0:01:53]} Rd7 {[%emt 0:06:55]} 23. h4 {[%emt 0:03:15]} Rcd8 {[%emt 0:05:04]} 24. Kg1 {[%emt 0:06:30]} Nc7 {[%emt 0:03:08]} (24... Nb6 $17 {[%cal Oc5b3]} 25. Qc2 Nxc4 26. bxc4 g5) 25. Qf3 {[%emt 0:03:43]} Nb5 {[%emt 0:04:49]} 26. Nc2 {[%emt 0:04:39]} (26. Nxb5 $15 Qc6 27. Qg4 Qxb5 28. Rxd7 Qxd7 (28... Rxd7 29. Nd6 $15) 29. Nxa5) 26... Rd3 $2 {[%emt 0:03:59]} (26... Rxd1+ 27. Rxd1 Rxd1+ 28. Qxd1 $15) (26... Qc6 $19 {is more deadly.} 27. Qe2 Nxb3 28. Rxd7 Rxd7) 27. Qe2 $17 {[%emt 0:01:33]} (27. Rxd3 $2 Rxd3 28. Qg4 Nxb3 $19 (28... Rxb3 $2 29. Ne1 $17)) 27... Nc3 {[%emt 0:15:00] Black has more active pieces.} (27... Rxb3 28. Rxd8+ Bxd8 29. Na1 $18) 28. Bxc3 {[%emt 0:01:43]} Rxc3 {[%emt 0:00:05]} 29. Rxd8+ {[%emt 0:00:41]} Bxd8 {[%emt 0:00:01]} 30. Rd1 {[%emt 0:00:03]} (30. Qd2 Rd3 (30... Nxb3 31. Qxd8+ Kh7 32. Nd6 $18) 31. Qe2) 30... Be7 {[%emt 0:00:47]} (30... Bc7 $1 31. N2e3 Rxb3) 31. N2e3 {[%emt 0:00:36]} (31. Nd4 $142) 31... Rxb3 {[%emt 0:02:54]} 32. h5 {[%emt 0:00:55]} gxh5 {[%emt 0:02:16]} 33. Qxh5 {[%emt 0:00:27]} Rd3 {[%emt 0:00:33] Dodges Nd6} 34. Rc1 {[%emt 0:00:34]} (34. Rxd3 $142 Nxd3 35. Qd1) 34... b6 {[%emt 0:02:44]} (34... Rd4 $17 35. Nd6 g6) 35. Kh2 {[%emt 0:01:39]} ({White should play} 35. Nd6 $1 $15 Bxd6 (35... Rxa3 36. Qxf7+ Kh8 37. Ne8) 36. exd6) 35... Rd4 $2 {[%emt 0:02:01]} (35... Ne4 $17 {[%cal Ob6b5] aiming for ...b5!.} 36. Qf3 Rd4 (36... Bxa3 $2 37. Nxa3 Nd2 38. Qe2 $18)) 36. Nd6 $2 {[%emt 0:01:19]} Bxd6 {[%emt 0:01:10]} 37. exd6 {[%emt 0:00:02] [#]} Rd2 {[%emt 0:03:28]} (37... Rxd6 38. Rc4 $11) ({Black should play} 37... Qd3 $1 $17 {[%cal Od3e4]} 38. Rd1 Qe4) 38. Ng4 $2 {[%emt 0:01:15]} (38. Kg1 $15 g6 (38... Rxd6 39. Rc4 $17) 39. Qh4 Rxd6 40. Ng4) 38... Rd5 $36 {[%emt 0:03:41][%mdl 2048] Black is on the roll.} (38... Rxd6 39. Ne5 g6 40. Qf3 $11 (40. Nxg6 $2 fxg6 41. Qxg6+ Kf8 $19)) 39. Ne5 {[%emt 0:01:31]} (39. Qh4 {was worth a try.}) 39... g6 $19 {[%emt 0:00:17]} (39... Rxd6 $2 40. Qxf7+ (40. Nxf7 Rd2 $16) 40... Kh7 41. Rh1 $18 (41. Rc4 Qxc4 42. Qg6+ Kg8 $18)) 40. Qg5 {[%emt 0:00:44] [#]} (40. Qf3 Rxe5 41. Rxc5 Rxc5 (41... bxc5 42. d7 $17) 42. d7) 40... Qe2 $1 {[%emt 0:00:59]} 41. d7 {[%emt 0:17:07]} Qxf2+ {[%emt 0:06:52]} (41... Qxe5 $2 {is the wrong capture.} 42. Qxe5 (42. d8=R+ Kg7 $18) (42. d8=Q+ Rxd8 43. Qxe5 Rd5 $18) 42... Rxd7 43. Kg2 $18) 42. Kh3 {[%emt 0:00:06]} Qf5+ {[%emt 0:01:41]} 43. Qxf5 {[%emt 0:00:08]} gxf5 {[%emt 0:00:30]} 44. Nc6 {[%emt 0:00:36]} Rxd7 {[%emt 0:00:10]} 45. Nxa5 {[%emt 0:00:35]} Rd3 {[%emt 0:00:42]} 46. Kh4 {[%emt 0:01:47]} (46. Nc4 $142) 46... bxa5 {[%emt 0:00:19]} 47. Rxc5 {[%emt 0:00:22]} Rxa3 {[%emt 0:00:04] Weighted Error Value: White=0.66/Black=0.48  Loses game:     	White=1     	---        Missed win:     	---       	Black=1      Mistake:       	White=12    	Black=9      Inaccurate:     	White=6     	---        OK:         	White=7     	Black=14     Best:        	White=3     	Black=2      Strong:       	White=1     	Black=1} 0-1

[Event "Reykjavik Open 2025"]
[Site "Reykjavik"]
[Date "2025.04.09"]
[Round "1.7"]
[White "Muradli, Mahammad"]
[Black "Pattnayak Nilsu"]
[Result "1-0"]
[Annotator "TA"]
[ECO "E06"]
[WhiteElo "2588"]
[BlackElo "2146"]
[PlyCount "85"]
[EventDate "2025.04.09"]
[EventType "swiss"]
[EventCountry "ISL"]
[SourceTitle "playchess.com"]
[Source "ChessBase"]
[SourceQuality "1"]
[TimeControl "40/5400+30:1800+30"]

{[%evp 21,85,17,28,12,17,14,22,-12,0,0,-12,0,0,2,30,13,20,29,265,255,257,266,266,280,268,266,254,264,289,285,300,300,311,326,626,613,4675,1212,3454,1984,2016,2081,6211,6203,6095,6094,6311,6215,6079,5501,29968,29966,29978,29978,29980,29980,29982,29983,29984,29985,29985,29986,29986,29987,29987,29988]} 1. d4 {[%emt 0:00:13]} Nf6 {[%emt 0:00:36]} 2. c4 {[%emt 0:00:12]} e6 {[%emt 0:00:06]} 3. Nf3 {[%emt 0:00:07]} d5 {[%emt 0:00:13]} 4. g3 {[%emt 0:00:09]} Be7 {[%emt 0:00:25]} 5. Bg2 {[%emt 0:00:21]} O-O {[%emt 0:00:18]} 6. Nc3 {[%emt 0:00:13]} dxc4 {[%emt 0:02:46]} 7. Ne5 {[%emt 0:00:11]} Nc6 {[%emt 0:04:05]} 8. Bxc6 {[%emt 0:00:10]} bxc6 {[%emt 0:00:05]} 9. Nxc6 {[%emt 0:00:11]} Qd6 {[%emt 0:03:32]} 10. Nxe7+ {[%emt 0:00:56]} Qxe7 {[%emt 0:00:05]} 11. Qa4 {[%emt 0:00:12]} c5 {[%emt 0:01:02] 11...Nd5 is the hot move.} 12. dxc5 {[%emt 0:10:13] E06: Closed Catalan: Early deviations.} Qxc5 {[%emt 0:00:15]} 13. Be3 {[%emt 0:00:06]} Qc7 {[%emt 0:00:05]} 14. O-O-O {[%emt 0:02:43] The position is equal.} Ng4 {[%emt 0:14:51]} 15. Rd4 {[%emt 0:07:28][%csl LRc4,LRg4]} Nxe3 {[%emt 0:01:12]} 16. fxe3 {[%emt 0:00:03][%cal Oh1d1]} Rb8 {[%emt 0:11:59] [#] White must now prevent ...Qb7.} 17. Rhd1 {[%emt 0:07:11][%cal Bh1d1,Bd1d2,Bd2c2][%mdl 32]} Qb6 {[%emt 0:11:45][%csl Gb8][%cal Rb6b2]} 18. R1d2 $146 {[%emt 0:01:28] Successful Defense White Active counter play!} (18. Qa3 Bb7 19. Qd6 Rfc8 20. R1d2 Qxd6 21. Rxd6 Bc6 22. R2d4 Be8 23. Kc2 Kf8 24. Ne4 {½-½ Oparin,G (2624)-Tomashevsky,E (2705) RUS-ch rapid 2018 (10.4)}) 18... e5 {[%emt 0:04:40]} (18... Bb7 {simplifies} 19. Qb5 Rfc8 20. e4 h6) 19. Nd5 {[%emt 0:02:10]} (19. Rxc4 Be6 (19... Qxe3 20. Nd5 $15) 20. Rc6 (20. Re4 $2 Rfc8 $19) 20... Qxe3 $17) 19... c3 $2 {[%emt 0:21:49] This move loses the game for Black.} 20. Nxb6 $18 {[%emt 0:00:38]} exd4 {[%emt 0:00:07]} 21. Rc2 {[%emt 0:03:26]} (21. Qxa7 cxd2+ 22. Kxd2 dxe3+ 23. Kxe3 Bg4 $17) (21. Rxd4 $6 cxb2+ 22. Kxb2 Rxb6+ 23. Rb4 Ra6 $16) (21. bxc3 $6 dxc3 22. Rd3 (22. Qxa7 cxd2+ 23. Kxd2 Rb7 $11) 22... axb6 $16) 21... axb6 {[%emt 0:06:25]} 22. exd4 {[%emt 0:00:20][%cal Be3d4,Bd4d5][%mdl 32]} ({Less strong is} 22. bxc3 dxe3 23. Qf4 Be6 $16) 22... cxb2+ {[%emt 0:00:42]} 23. Rxb2 {[%emt 0:00:58]} ({Resist} 23. Kxb2 $6 Bf5 $18) 23... b5 {[%emt 0:00:23]} 24. Qb3 {[%emt 0:01:14]} (24. Rxb5 Bd7 25. Rxb8 Bxa4 $19) 24... Bf5 {[%emt 0:00:26]} 25. d5 {[%emt 0:00:38]} Rfc8+ {[%emt 0:01:10]} 26. Kd1 {[%emt 0:00:15]} Rc5 {[%emt 0:02:39]} 27. Qf3 {[%emt 0:01:40]} Rd8 $2 {[%emt 0:00:17]} (27... Bg6 28. d6 Bf5) 28. Qxf5 {[%emt 0:02:20]} Rcxd5+ {[%emt 0:01:53] [#]} 29. Qxd5 $3 {[%emt 0:00:10][%mdl 512]} Rxd5+ {[%emt 0:00:04]} 30. Rd2 {[%emt 0:00:09]} Rxd2+ {[%emt 0:01:46]} 31. Kxd2 {[%emt 0:00:02][%mdl 4096] Endgame Black must now prevent Kc3. KP-KP} Kf8 {[%emt 0:02:22]} 32. Kc3 {[%emt 0:00:07]} Ke7 {[%emt 0:00:06]} 33. Kb4 {[%emt 0:00:07]} Kd6 {[%emt 0:00:15]} 34. Kxb5 {[%emt 0:00:08] Intending Kb6 and mate.} Kc7 {[%emt 0:00:05]} 35. Kc5 {[%emt 0:00:24]} h5 {[%emt 0:00:09]} 36. e4 {[%emt 0:00:27][%cal Be2e4,Be4e5][%mdl 32] White mates.} g5 {[%emt 0:00:51]} 37. Kd5 {[%emt 0:00:13]} h4 {[%emt 0:00:26]} 38. Ke5 {[%emt 0:00:13]} hxg3 {[%emt 0:00:13]} 39. hxg3 {[%emt 0:00:03]} Kd7 {[%emt 0:00:11]} 40. Kf6 {[%emt 0:00:07][%csl LRf7,LRg5]} Kd6 {[%emt 0:00:07]} 41. e5+ {[%emt 0:30:11]} Kd5 {[%emt 0:30:07]} 42. a4 {[%emt 0:00:07][%cal Ba2a4,Ba4a5][%mdl 32]} g4 {[%emt 0:00:25]} 43. a5 {[%emt 0:00:05] Weighted Error Value: White=0.03 (flawless) /Black=0.69  Loses game:     	---       	Black=1      Mistake:       	---       	Black=1      Inaccurate:     	White=1     	Black=2      OK:         	White=10    	Black=5      Best:        	White=2     	---} 1-0

[Event "Reykjavik Open 2025"]
[Site "Reykjavik"]
[Date "2025.04.09"]
[Round "1.8"]
[White "Ptacnikova, Lenka"]
[Black "Gupta, Abhijeet"]
[Result "0-1"]
[Annotator "TA"]
[ECO "E60"]
[WhiteElo "2142"]
[BlackElo "2576"]
[PlyCount "60"]
[EventDate "2025.04.09"]
[EventType "swiss"]
[EventCountry "ISL"]
[SourceTitle "playchess.com"]
[Source "ChessBase"]
[SourceQuality "1"]
[TimeControl "40/5400+30:1800+30"]

{[%evp 9,60,25,17,22,18,0,-8,2,0,-11,-11,-6,-10,-26,0,-12,0,0,0,-79,-57,-81,-77,-91,-71,-93,-31,-185,-185,-180,-163,-179,-117,-202,-204,-208,-188,-194,-192,-175,-100,-158,-158,-158,-158,-156,-156,-155,-155,-164,-158,-160,-163]} 1. Nf3 {[%emt 0:00:04]} Nf6 {[%emt 0:00:22]} 2. c4 {[%emt 0:00:21]} g6 {[%emt 0:00:49]} 3. d4 {[%emt 0:00:24]} Bg7 {[%emt 0:00:09]} 4. g3 {[%emt 0:00:15]} d5 {[%emt 0:01:19]} 5. cxd5 {[%emt 0:00:22]} Nxd5 {[%emt 0:00:05]} 6. e4 {[%emt 0:14:56] E60: King's Indian: Unusual lines and Fianchetto Variation without Nc3.} Nb6 {[%emt 0:00:47]} 7. h3 {[%emt 0:03:53] Against Bg4} O-O {[%emt 0:02:29][%cal Oc7c5]} 8. Nc3 {[%emt 0:01:05] The position is equal.} c5 {[%emt 0:07:39][%cal Rc5d4]} 9. Be3 {[%emt 0:08:24]} cxd4 {[%emt 0:02:07]} 10. Nxd4 {[%emt 0:00:37]} Bd7 {[%emt 0:01:43]} 11. Qc2 $146 {[%emt 0:16:00]} (11. Qe2 Qc8 12. Rc1 Nc6 13. Ncb5 Rd8 14. Bg2 Be8 15. O-O Bxd4 16. Nxd4 Rxd4 17. Rxc6 Bxc6 18. Bxd4 {½-½ Welford Ranson,F (2074)-Guthrie,D (2129) Guildford Spring op 2024 (2)}) 11... Na6 {[%emt 0:01:26]} 12. Rd1 {[%emt 0:01:16]} Rc8 {[%emt 0:00:37] Prevents Nc6.} 13. Ndb5 {[%emt 0:01:19]} Qe8 {[%emt 0:01:42]} 14. Qb1 {[%emt 0:11:08] [#]} (14. Nxa7 $11 Ba4 15. Qc1 Bxc3+ 16. bxc3 Bxd1 17. Nxc8 Qxc8 (17... Bf3 18. Nxb6 Bxh1 19. Bd3 $11) 18. Qxd1 Qxc3+ 19. Qd2) 14... Nc4 $1 $17 {[%emt 0:02:07]} 15. Bxc4 {[%emt 0:00:19]} Rxc4 {[%emt 0:00:04]} 16. Nxa7 {[%emt 0:01:02]} Nc5 $1 {[%emt 0:06:51]} (16... Bxc3+ 17. bxc3 b5 (17... Rxc3 18. Bh6 $16) 18. Kf1 $11) 17. Nd5 {[%emt 0:04:27]} Rxe4 {[%emt 0:02:45]} (17... Nxe4 $17 18. Qd3 Nd6) 18. O-O $2 {[%emt 0:03:52] [#]} ({White should try} 18. Qc2 $1 $15 Rxe3+ 19. fxe3 (19. Nxe3 b6 $11)) 18... Rxe3 $1 $19 {[%emt 0:00:22][%mdl 512] Black attacks} 19. Nxe3 {[%emt 0:01:29]} Bxh3 {[%emt 0:00:16] This pair of bishops is nice.} 20. Qc2 {[%emt 0:07:19]} Ne6 {[%emt 0:02:14]} (20... Bxf1 $19 21. Qxc5 Be2) 21. Qc4 {[%emt 0:04:52]} Bxf1 {[%emt 0:01:52]} 22. Kxf1 {[%emt 0:00:12]} Bxb2 {[%emt 0:02:55]} 23. Qb4 {[%emt 0:01:06]} Bf6 {[%emt 0:10:47][%cal Ob7b6]} 24. Qxb7 {[%emt 0:03:14]} Qa8 {[%emt 0:02:52]} ({Black should play} 24... Nd4 $19 {And now ...Qa4 would win.} 25. Kg2 Kg7) 25. Qxa8 {[%emt 0:00:27]} (25. Rd7 $142) 25... Rxa8 $17 {[%emt 0:00:03] Black is clearly better.} 26. Rd7 {[%emt 0:02:33]} Bd4 {[%emt 0:04:35]} 27. Nc6 {[%emt 0:00:12]} Bxe3 {[%emt 0:00:11]} 28. fxe3 {[%emt 0:00:18]} Rxa2 {[%emt 0:00:15]} 29. Nxe7+ {[%emt 0:00:49]} Kg7 {[%emt 0:00:05]} 30. Nc6 {[%emt 0:01:08]} Ng5 {[%emt 0:01:47] Weighted Error Value: White=0.25 (precise) /Black=0.11 (very precise)   Mistake:       	White=4     	Black=3      Inaccurate:     	White=1     	---        OK:         	White=9     	Black=13     Best:        	---       	Black=1      Strong:       	---       	Black=2      Brilliant:      	---       	Black=1} 0-1

[Event "Reykjavik Open 2025"]
[Site "Reykjavik"]
[Date "2025.04.09"]
[Round "1.9"]
[White "Jacobson, Brandon"]
[Black "Aeschbacher, Dimitri"]
[Result "1-0"]
[Annotator "TA"]
[ECO "A17"]
[WhiteElo "2570"]
[BlackElo "2142"]
[PlyCount "60"]
[EventDate "2025.04.09"]
[EventType "swiss"]
[EventCountry "ISL"]
[SourceTitle "playchess.com"]
[Source "ChessBase"]
[SourceQuality "1"]
[TimeControl "40/5400+30:1800+30"]

{[%evp 9,60,0,0,0,95,86,100,88,102,100,87,91,115,89,93,77,71,64,81,18,69,67,71,33,74,75,98,23,16,20,10,29,47,35,302,270,277,255,297,-636,-606,-740,198,190,262,291,300,66,203,-1714,29991,29992,29993]} 1. Nf3 {[%emt 0:00:18]} Nf6 {[%emt 0:00:21]} 2. c4 {[%emt 0:00:15]} e6 {[%emt 0:01:12]} 3. Nc3 {[%emt 0:00:40]} Bb4 {[%emt 0:06:48]} 4. Qc2 {[%emt 0:04:36]} O-O {[%emt 0:05:00]} 5. e4 {[%emt 0:02:39][%cal Be2e4,Be4e5][%mdl 32]} d6 {[%emt 0:01:54]} 6. a3 {[%emt 0:06:02] A17: English Opening: 1...Nf6 with ...Bb4.} Ba5 {[%emt 0:08:29]} (6... Bxc3 $11 {keeps the balance.} 7. bxc3 e5) 7. b4 $16 {[%emt 0:14:16]} Bb6 {[%emt 0:00:17]} 8. e5 $146 {[%emt 0:00:34] White is better.} (8. d4 a5 9. Na4 axb4 10. Nxb6 cxb6 11. Bd3 e5 12. Bb2 bxa3 13. dxe5 dxe5 14. Rxa3 Rxa3 15. Bxa3 {0-1 Beltran Seguer,J-Ramos Mora,J ESP corr Spain 1995}) 8... Ng4 {[%emt 0:12:27]} 9. d4 {[%emt 0:01:33] Hoping for h3.} a5 {[%emt 0:09:16][%cal Ba7a5,Ba5b4][%mdl 32] Strongly threatening ...axb4.} 10. c5 {[%emt 0:02:01]} axb4 {[%emt 0:00:17]} 11. cxb6 {[%emt 0:00:06]} bxc3 {[%emt 0:00:24]} 12. h3 {[%emt 0:00:07]} Nh6 {[%emt 0:00:12]} 13. Bg5 {[%emt 0:10:57]} (13. Qxc3 cxb6 14. Bxh6 gxh6 15. Qe3) 13... Qd7 {[%emt 0:01:48] A sharp opening Black is weak on the dark squares} 14. Qxc3 {[%emt 0:10:53] White sacrificed a pawn White has more active pieces.} (14. Bd3 $16) 14... cxb6 {[%emt 0:01:47]} ({Black should play} 14... Nf5 $1 $11) 15. Bxh6 $14 {[%emt 0:01:20]} gxh6 {[%emt 0:00:11]} 16. Qe3 {[%emt 0:00:03]} Nc6 {[%emt 0:04:02]} 17. Bd3 $36 {[%emt 0:05:01][%mdl 2048] White is on the roll.} Nb4 {[%emt 0:03:02]} 18. Be4 {[%emt 0:06:50]} (18. O-O $1 $16 Nxd3 19. Qxd3) 18... f5 $11 {[%emt 0:08:43]} 19. exf6 {[%emt 0:00:29]} Rxf6 {[%emt 0:00:18]} 20. Nh2 {[%emt 0:06:24]} (20. O-O {simplifies} Nd5 21. Bxd5 exd5 22. Rab1) 20... h5 {[%emt 0:04:11]} 21. O-O {[%emt 0:00:28]} d5 $2 {[%emt 0:02:41][%mdl 8192]} (21... Nd5 $14 22. Bxd5 exd5) 22. Bxh7+ {[%emt 0:05:36]} Qxh7 {[%emt 0:00:43]} 23. axb4 {[%emt 0:00:04]} Rxa1 {[%emt 0:00:09]} 24. Re1 {[%emt 0:00:03][%mdl 8192]} (24. Rxa1 $18 Bd7 25. Nf3) 24... Rb1 25. Rxb1 {[%emt 0:00:30]} Bd7 $4 {[%emt 0:01:14][%mdl 8192]} (25... Qxb1+ $19 {and life is good for Black.} 26. Nf1 Bd7 (26... Qxb4 $2 27. Qg3+ Kf8 28. Qc7 $19) 27. Qg5+ Qg6) 26. Ra1 {[%emt 0:00:39]} Rf8 {[%emt 0:08:58]} (26... Qe4 $142 27. Ra8+ (27. Qg5+ Rg6 $18) 27... Kg7 28. Qg5+ Qg6) 27. Nf3 $18 {[%emt 0:03:30]} Qg7 {[%emt 0:01:48]} 28. Qg5 $2 {[%emt 0:00:20]} ({Better is} 28. Ra7 $18 Bc6 29. Qxe6+ Kh7 30. Qe3 (30. Ne5 Rf6 $11)) 28... Be8 {[%emt 0:01:00] [#]} (28... Qxg5 $14 29. Nxg5 Kg7) 29. Qxh5 $4 {[%emt 0:00:21][%mdl 8192] [#]} Qe5 $4 {[%emt 0:01:19][%mdl 8192]} 30. Qxe5 {[%emt 0:00:53]} Rf5 {[%emt 0:04:02] Weighted Error Value: White=0.64/Black=0.76  Loses game:     	---       	Black=1      Missed win:     	White=3     	Black=1      Mistake:       	White=2     	Black=3      Inaccurate:     	White=1     	Black=1      OK:         	White=5     	Black=4      Best:        	White=3     	Black=3      Strong:       	White=1     	---} 1-0

[Event "Reykjavik Open 2025"]
[Site "Reykjavik"]
[Date "2025.04.09"]
[Round "1.10"]
[White "Jaksland, Tim"]
[Black "Gorshtein, Ido"]
[Result "0-1"]
[Annotator "ChessBase"]
[ECO "B14"]
[WhiteElo "2140"]
[BlackElo "2557"]
[PlyCount "84"]
[EventDate "2025.04.09"]
[EventType "swiss"]
[EventCountry "ISL"]
[SourceTitle "playchess.com"]
[Source "ChessBase"]
[SourceQuality "1"]
[TimeControl "40/5400+30:1800+30"]

1. e4 {[%emt 0:00:04]} c6 {[%emt 0:00:07]} 2. d4 {[%emt 0:00:29]} d5 {[%emt 0:00:06]} 3. exd5 {[%emt 0:00:41]} cxd5 {[%emt 0:00:07]} 4. c4 {[%emt 0:00:26]} Nf6 {[%emt 0:00:09]} 5. Nc3 {[%emt 0:00:20]} g6 {[%emt 0:00:26]} 6. Qb3 {[%emt 0:01:31]} Bg7 {[%emt 0:00:09]} 7. cxd5 {[%emt 0:00:46]} O-O {[%emt 0:00:09]} 8. Be2 {[%emt 0:01:05]} Qb6 {[%emt 0:01:15]} 9. Qxb6 {[%emt 0:05:28]} axb6 {[%emt 0:00:03]} 10. Bf3 {[%emt 0:08:17]} Na6 {[%emt 0:01:18]} 11. Nge2 {[%emt 0:01:55]} Nb4 {[%emt 0:00:59]} 12. O-O {[%emt 0:01:56]} Rd8 {[%emt 0:02:10]} 13. d6 {[%emt 0:08:45]} Rxd6 {[%emt 0:05:50]} 14. Bf4 {[%emt 0:04:47]} Rd7 {[%emt 0:01:21]} 15. Be5 {[%emt 0:07:32]} Nc6 {[%emt 0:17:41]} 16. Bxf6 {[%emt 0:22:37]} exf6 {[%emt 0:01:54]} 17. Nd5 {[%emt 0:05:57]} Ra6 {[%emt 0:00:24]} 18. b4 {[%emt 0:08:34]} b5 {[%emt 0:01:16]} 19. a4 {[%emt 0:00:51]} Na7 {[%emt 0:18:04]} 20. axb5 {[%emt 0:07:22]} Nxb5 {[%emt 0:00:46]} 21. Rac1 {[%emt 0:05:53]} Na7 {[%emt 0:07:17]} 22. b5 {[%emt 0:01:18]} Rad6 {[%emt 0:00:25]} 23. Ra1 {[%emt 0:01:48]} b6 {[%emt 0:05:52]} 24. Rfc1 {[%emt 0:01:51]} Bb7 {[%emt 0:01:27]} 25. Rxa7 {[%emt 0:01:28]} Bxd5 {[%emt 0:00:07]} 26. Rc8+ {[%emt 0:00:46]} Bf8 {[%emt 0:00:52]} 27. Rxd7 {[%emt 0:00:31]} Rxd7 {[%emt 0:00:05]} 28. Rb8 {[%emt 0:00:49]} Ra7 {[%emt 0:02:39]} 29. h3 {[%emt 0:00:34]} Ra1+ {[%emt 0:01:40]} 30. Kh2 {[%emt 0:00:01]} Bxf3 {[%emt 0:01:01]} 31. gxf3 {[%emt 0:00:04]} Ra2 {[%emt 0:00:13]} 32. Nc3 {[%emt 0:00:51]} Rxf2+ {[%emt 0:00:54]} 33. Kg3 {[%emt 0:00:04]} Rb2 {[%emt 0:06:53]} 34. Rxb6 {[%emt 0:01:16]} f5 {[%emt 0:01:35]} 35. Rc6 {[%emt 0:00:14]} Bb4 {[%emt 0:01:07]} 36. Rc4 {[%emt 0:00:58]} Kg7 {[%emt 0:01:54]} 37. b6 {[%emt 0:00:32]} Bd6+ {[%emt 0:00:20]} 38. f4 {[%emt 0:00:27]} Rxb6 {[%emt 0:00:27]} 39. d5 {[%emt 0:00:34]} Rb3 {[%emt 0:00:55]} 40. Kg2 {[%emt 0:00:25]} Bxf4 {[%emt 0:00:39]} 41. Ne2 {[%emt 0:00:58]} Be5 {[%emt 0:00:10]} 42. Ra4 {[%emt 0:03:40]} Rb5 {[%emt 0:00:31]} 0-1